[Event "Early-Titled-Tuesday-Blitz-February-27-2024"]
[Site "Chess.com"]
[Date "2024.02.27"]
[Round "3"]
[White "Shield12"]
[Black "KarolKacprzak"]
[Result "1-0"]
[WhiteElo "2982"]
[BlackElo "2728"]
[TimeControl "180+1"]
[EndTime "8:25:12 PST"]
[Termination "Shield12 won by resignation"]

1. e4 {[%clk 0:03:00.9]} 1... c5 {[%clk 0:02:58.1]} 2. Nf3 {[%clk 0:02:59.4]}
2... d6 {[%clk 0:02:58.7]} 3. d4 {[%clk 0:02:58.9]} 3... cxd4 {[%clk 0:02:59.6]}
4. Nxd4 {[%clk 0:02:59.1]} 4... Nf6 {[%clk 0:03:00.5]} 5. Nc3 {[%clk 0:02:59.3]}
5... a6 {[%clk 0:03:01.2]} 6. h3 {[%clk 0:02:59.1]} 6... e6 {[%clk 0:02:57.8]}
7. g4 {[%clk 0:02:58.3]} 7... h6 {[%clk 0:02:58.4]} 8. Bg2 {[%clk 0:02:56.9]}
8... Qc7 {[%clk 0:02:36.1]} 9. h4 {[%clk 0:02:51.6]} 9... Nc6 {[%clk 0:02:33.7]}
10. g5 {[%clk 0:02:49.3]} 10... hxg5 {[%clk 0:02:34.6]} 11. hxg5 {[%clk
0:02:49.5]} 11... Rxh1+ {[%clk 0:02:35.5]} 12. Bxh1 {[%clk 0:02:50]} 12... Nxd4
{[%clk 0:02:11.6]} 13. Qxd4 {[%clk 0:02:50.9]} 13... Ng4 {[%clk 0:01:38.5]} 14.
Bd2 {[%clk 0:02:47.2]} 14... b5 {[%clk 0:01:27]} 15. e5 {[%clk 0:02:45]} 15...
dxe5 {[%clk 0:01:08.1]} 16. Qxg4 {[%clk 0:02:43.8]} 16... Bb7 {[%clk 0:01:09]}
17. Bxb7 {[%clk 0:02:41.8]} 17... Qxb7 {[%clk 0:01:09.9]} 18. O-O-O {[%clk
0:02:40.9]} 18... O-O-O {[%clk 0:01:09.6]} 19. Be3 {[%clk 0:02:36.6]} 19...
Rxd1+ {[%clk 0:00:53.8]} 20. Qxd1 {[%clk 0:02:37.5]} 20... Be7 {[%clk
0:00:54.5]} 21. a3 {[%clk 0:02:32.9]} 21... Qg2 {[%clk 0:00:45.4]} 22. Qh5
{[%clk 0:02:28]} 22... b4 {[%clk 0:00:29.2]} 23. axb4 {[%clk 0:02:23.5]} 23...
Bxb4 {[%clk 0:00:21]} 24. Qxf7 {[%clk 0:02:22.1]} 1-0

[Event "Early-Titled-Tuesday-Blitz-February-27-2024"]
[Site "Chess.com"]
[Date "2024.02.27"]
[Round "3"]
[White "averageFM"]
[Black "ural58"]
[Result "1-0"]
[WhiteElo "2633"]
[BlackElo "2447"]
[TimeControl "180+1"]
[EndTime "8:25:12 PST"]
[Termination "averageFM won by resignation"]

1. d4 {[%clk 0:03:00.9]} 1... d5 {[%clk 0:02:59.2]} 2. e4 {[%clk 0:03:00.3]}
2... dxe4 {[%clk 0:02:58.3]} 3. Nc3 {[%clk 0:02:59.1]} 3... e5 {[%clk
0:02:58.3]} 4. dxe5 {[%clk 0:02:53.2]} 4... Qxd1+ {[%clk 0:02:57.1]} 5. Kxd1
{[%clk 0:02:47]} 5... Bf5 {[%clk 0:02:54.6]} 6. Bf4 {[%clk 0:02:36.4]} 6... Nd7
{[%clk 0:02:54.3]} 7. Nge2 {[%clk 0:02:32.3]} 7... O-O-O {[%clk 0:02:53.9]} 8.
Ke1 {[%clk 0:02:18.3]} 8... Bb4 {[%clk 0:02:48.1]} 9. a3 {[%clk 0:02:17.6]} 9...
Bxc3+ {[%clk 0:02:47.6]} 10. Nxc3 {[%clk 0:02:17]} 10... Ne7 {[%clk 0:02:48.2]}
11. Bc4 {[%clk 0:02:04.4]} 11... Ng6 {[%clk 0:02:45.2]} 12. Bg5 {[%clk
0:01:59.3]} 12... Rdf8 {[%clk 0:02:22.5]} 13. e6 {[%clk 0:01:50.2]} 13... fxe6
{[%clk 0:02:22.4]} 14. Be3 {[%clk 0:01:47.7]} 14... Nge5 {[%clk 0:02:20.2]} 15.
Bb3 {[%clk 0:01:44.8]} 15... a6 {[%clk 0:02:17.4]} 16. h3 {[%clk 0:01:40.3]}
16... h5 {[%clk 0:02:17.4]} 17. Rd1 {[%clk 0:01:35.9]} 17... Rd8 {[%clk
0:02:00.6]} 18. Ne2 {[%clk 0:01:32]} 18... Nf6 {[%clk 0:01:54]} 19. Nd4 {[%clk
0:01:26.8]} 19... Rhe8 {[%clk 0:01:50.1]} 20. Ke2 {[%clk 0:01:18]} 20... c5
{[%clk 0:01:49.9]} 21. Nxf5 {[%clk 0:01:16.5]} 21... exf5 {[%clk 0:01:50.6]} 22.
Rxd8+ {[%clk 0:01:16]} 22... Rxd8 {[%clk 0:01:50]} 23. Be6+ {[%clk 0:01:14.3]}
23... Kb8 {[%clk 0:01:47.3]} 24. Bf4 {[%clk 0:01:12.6]} 1-0

[Event "Early-Titled-Tuesday-Blitz-February-27-2024"]
[Site "Chess.com"]
[Date "2024.02.27"]
[Round "3"]
[White "LyonBeast"]
[Black "Egor_Koshulyan"]
[Result "1-0"]
[WhiteElo "3139"]
[BlackElo "2650"]
[TimeControl "180+1"]
[EndTime "8:25:13 PST"]
[Termination "LyonBeast won by checkmate"]

1. e4 {[%clk 0:03:00.9]} 1... c5 {[%clk 0:02:49.6]} 2. Nf3 {[%clk 0:03:00.5]}
2... Nc6 {[%clk 0:02:50.1]} 3. c3 {[%clk 0:02:59.5]} 3... Nf6 {[%clk 0:02:50.3]}
4. e5 {[%clk 0:02:59.6]} 4... Nd5 {[%clk 0:02:51]} 5. Bc4 {[%clk 0:02:56.8]}
5... e6 {[%clk 0:02:51.3]} 6. O-O {[%clk 0:02:54.8]} 6... d6 {[%clk 0:02:44.1]}
7. d4 {[%clk 0:02:54.8]} 7... cxd4 {[%clk 0:02:43.9]} 8. cxd4 {[%clk 0:02:55.7]}
8... Be7 {[%clk 0:02:44.2]} 9. Qe2 {[%clk 0:02:54.5]} 9... O-O {[%clk
0:02:44.8]} 10. Rd1 {[%clk 0:02:54.2]} 10... Na5 {[%clk 0:02:45.2]} 11. Bxd5
{[%clk 0:02:48.1]} 11... exd5 {[%clk 0:02:44.9]} 12. Nc3 {[%clk 0:02:48.9]}
12... Be6 {[%clk 0:02:44.3]} 13. Bf4 {[%clk 0:02:43.6]} 13... a6 {[%clk
0:02:31.6]} 14. Rac1 {[%clk 0:02:39.1]} 14... Rc8 {[%clk 0:02:31.2]} 15. h3
{[%clk 0:02:35.9]} 15... b5 {[%clk 0:02:20.9]} 16. exd6 {[%clk 0:02:33.6]} 16...
Bxd6 {[%clk 0:02:19.7]} 17. Bxd6 {[%clk 0:02:34.5]} 17... Qxd6 {[%clk
0:02:20.6]} 18. b3 {[%clk 0:02:32.7]} 18... Rc7 {[%clk 0:02:15.7]} 19. Qd2
{[%clk 0:02:32.4]} 19... Qb4 {[%clk 0:01:53.5]} 20. Ne2 {[%clk 0:02:27.3]} 20...
Rxc1 {[%clk 0:01:46.4]} 21. Qxb4 {[%clk 0:02:16.7]} 21... Rxd1+ {[%clk
0:01:46.3]} 22. Kh2 {[%clk 0:02:17.4]} 22... Nc6 {[%clk 0:01:43.8]} 23. Qd6
{[%clk 0:02:17.6]} 23... Nb8 {[%clk 0:01:43.8]} 24. Nf4 {[%clk 0:02:16.6]} 24...
Re8 {[%clk 0:01:41.7]} 25. Nxe6 {[%clk 0:02:13.3]} 25... fxe6 {[%clk 0:01:42.6]}
26. Qc7 {[%clk 0:02:12.8]} 26... Rf1 {[%clk 0:01:29.9]} 27. Qc2 {[%clk
0:02:05.9]} 27... Rf8 {[%clk 0:01:17]} 28. Ng5 {[%clk 0:02:02.8]} 28... R8xf2
{[%clk 0:01:08.4]} 29. Qxh7+ {[%clk 0:02:01.8]} 29... Kf8 {[%clk 0:01:09]} 30.
Qh8+ {[%clk 0:02:02.5]} 30... Ke7 {[%clk 0:01:09.5]} 31. Qxb8 {[%clk 0:02:02.3]}
31... Rxa2 {[%clk 0:01:09.2]} 32. Qc7+ {[%clk 0:01:59.8]} 32... Ke8 {[%clk
0:01:09.7]} 33. Qc8+ {[%clk 0:02:00.2]} 33... Ke7 {[%clk 0:01:09.6]} 34. Qxe6+
{[%clk 0:02:01.1]} 34... Kd8 {[%clk 0:01:10]} 35. Qxd5+ {[%clk 0:02:00.5]} 35...
Kc8 {[%clk 0:01:08.7]} 36. Ne6 {[%clk 0:01:59]} 36... Rff2 {[%clk 0:01:07]} 37.
Qc6+ {[%clk 0:01:59.2]} 37... Kb8 {[%clk 0:01:07.1]} 38. Qb6+ {[%clk 0:02:00.1]}
38... Ka8 {[%clk 0:01:06.8]} 39. Nc7# {[%clk 0:02:00.5]} 1-0

[Event "Early-Titled-Tuesday-Blitz-February-27-2024"]
[Site "Chess.com"]
[Date "2024.02.27"]
[Round "3"]
[White "superchthonic"]
[Black "carlocapau"]
[Result "0-1"]
[WhiteElo "2628"]
[BlackElo "2490"]
[TimeControl "180+1"]
[EndTime "8:25:19 PST"]
[Termination "carlocapau won by resignation"]

1. Nf3 {[%clk 0:03:00.9]} 1... Nf6 {[%clk 0:02:59.1]} 2. g3 {[%clk 0:03:01.2]}
2... g6 {[%clk 0:02:59.2]} 3. Bg2 {[%clk 0:02:55]} 3... Bg7 {[%clk 0:02:59.1]}
4. O-O {[%clk 0:02:55.8]} 4... O-O {[%clk 0:02:59.3]} 5. d3 {[%clk 0:02:56.6]}
5... d6 {[%clk 0:02:59.5]} 6. e4 {[%clk 0:02:57.1]} 6... c5 {[%clk 0:02:58.2]}
7. Re1 {[%clk 0:02:57.8]} 7... Nc6 {[%clk 0:02:58.1]} 8. a4 {[%clk 0:02:58.3]}
8... Rb8 {[%clk 0:02:55.5]} 9. c3 {[%clk 0:02:58.3]} 9... a6 {[%clk 0:02:55.1]}
10. d4 {[%clk 0:02:57.6]} 10... cxd4 {[%clk 0:02:54.7]} 11. cxd4 {[%clk
0:02:57.7]} 11... Bg4 {[%clk 0:02:55.3]} 12. h3 {[%clk 0:02:57.8]} 12... Bxf3
{[%clk 0:02:55.3]} 13. Bxf3 {[%clk 0:02:58.7]} 13... Nd7 {[%clk 0:02:55.4]} 14.
Be3 {[%clk 0:02:58.4]} 14... e5 {[%clk 0:02:55.1]} 15. dxe5 {[%clk 0:02:56.4]}
15... dxe5 {[%clk 0:02:54.3]} 16. Nc3 {[%clk 0:02:56]} 16... Nd4 {[%clk
0:02:54.2]} 17. Bg2 {[%clk 0:02:51]} 17... Nc5 {[%clk 0:02:52]} 18. Nd5 {[%clk
0:02:45.1]} 18... Kh8 {[%clk 0:02:40.9]} 19. h4 {[%clk 0:02:44.7]} 19... f5
{[%clk 0:02:40.1]} 20. h5 {[%clk 0:02:43.6]} 20... Nce6 {[%clk 0:02:35.1]} 21.
hxg6 {[%clk 0:02:41.2]} 21... hxg6 {[%clk 0:02:36]} 22. exf5 {[%clk 0:02:39.7]}
22... gxf5 {[%clk 0:02:35.6]} 23. Rc1 {[%clk 0:02:18.1]} 23... e4 {[%clk
0:02:24.3]} 24. Rc4 {[%clk 0:02:05.2]} 24... Qxd5 {[%clk 0:02:22.2]} 25. Qh5+
{[%clk 0:02:04.7]} 25... Kg8 {[%clk 0:02:21.9]} 26. Rec1 {[%clk 0:02:00.9]}
26... Rbd8 {[%clk 0:02:10.7]} 27. Bf1 {[%clk 0:01:59.2]} 27... Nf3+ {[%clk
0:02:07.3]} 28. Kh1 {[%clk 0:01:57.6]} 28... f4 {[%clk 0:02:05]} 29. Qxd5 {[%clk
0:01:56.1]} 29... Rxd5 {[%clk 0:02:05.9]} 30. gxf4 {[%clk 0:01:54.3]} 30... Rh5+
{[%clk 0:02:03.1]} 31. Kg2 {[%clk 0:01:54.6]} 31... Nxf4+ {[%clk 0:01:52.8]} 32.
Bxf4 {[%clk 0:01:54.8]} 32... Rxf4 {[%clk 0:01:53.7]} 33. Rc8+ {[%clk
0:01:55.3]} 33... Bf8 {[%clk 0:01:51.4]} 34. Kg3 {[%clk 0:01:55.7]} 34... Rf6
{[%clk 0:01:44.3]} 35. Bc4+ {[%clk 0:01:48]} 35... Kg7 {[%clk 0:01:34]} 36. Rc7+
{[%clk 0:01:46.2]} 36... Kh6 {[%clk 0:01:33.8]} 37. Bf7 {[%clk 0:01:37.7]} 37...
Bd6+ {[%clk 0:01:27.8]} 38. Kg4 {[%clk 0:01:36.1]} 0-1

[Event "Early-Titled-Tuesday-Blitz-February-27-2024"]
[Site "Chess.com"]
[Date "2024.02.27"]
[Round "3"]
[White "Boorchess"]
[Black "salomez"]
[Result "1-0"]
[WhiteElo "2571"]
[BlackElo "2320"]
[TimeControl "180+1"]
[EndTime "8:25:21 PST"]
[Termination "Boorchess won by resignation"]

1. d4 {[%clk 0:03:00.9]} 1... Nf6 {[%clk 0:02:55.5]} 2. c4 {[%clk 0:03:00.8]}
2... g6 {[%clk 0:02:55.4]} 3. f3 {[%clk 0:03:00.5]} 3... c5 {[%clk 0:02:49.3]}
4. d5 {[%clk 0:02:59.8]} 4... Bg7 {[%clk 0:02:49.5]} 5. e4 {[%clk 0:02:59.9]}
5... d6 {[%clk 0:02:49]} 6. Be3 {[%clk 0:02:58.6]} 6... e6 {[%clk 0:02:49.1]} 7.
Qd2 {[%clk 0:02:58.4]} 7... exd5 {[%clk 0:02:48.8]} 8. cxd5 {[%clk 0:02:58.5]}
8... a6 {[%clk 0:02:44.9]} 9. a4 {[%clk 0:02:58.1]} 9... Qb6 {[%clk 0:02:42.2]}
10. Na3 {[%clk 0:02:51.8]} 10... Nbd7 {[%clk 0:01:46]} 11. Nc4 {[%clk
0:02:50.5]} 11... Qc7 {[%clk 0:01:43.1]} 12. Bf4 {[%clk 0:02:49.9]} 12... Ne5
{[%clk 0:01:40.8]} 13. Nxe5 {[%clk 0:02:48.3]} 13... dxe5 {[%clk 0:01:40.8]} 14.
Be3 {[%clk 0:02:48.6]} 14... O-O {[%clk 0:01:37.8]} 15. Rc1 {[%clk 0:02:46.8]}
15... b6 {[%clk 0:01:34.8]} 16. b4 {[%clk 0:02:43.5]} 16... Nd7 {[%clk
0:01:21.2]} 17. a5 {[%clk 0:02:40]} 17... Rb8 {[%clk 0:01:17.4]} 18. axb6 {[%clk
0:02:39.2]} 18... Nxb6 {[%clk 0:01:04.9]} 19. Bxc5 {[%clk 0:02:32.9]} 19... Rd8
{[%clk 0:01:02.9]} 20. Bd3 {[%clk 0:02:28.3]} 20... Qd7 {[%clk 0:00:54.7]} 21.
Ne2 {[%clk 0:02:26.1]} 21... Na4 {[%clk 0:00:53.4]} 22. O-O {[%clk 0:02:24.2]}
22... Bb7 {[%clk 0:00:52.6]} 23. Ra1 {[%clk 0:02:19.7]} 23... Rdc8 {[%clk
0:00:49.5]} 24. Rfc1 {[%clk 0:02:17.3]} 24... Bf8 {[%clk 0:00:45.2]} 25. Bxf8
{[%clk 0:02:15.6]} 25... Kxf8 {[%clk 0:00:44.8]} 26. Nc3 {[%clk 0:02:00.7]}
26... Nxc3 {[%clk 0:00:42.2]} 27. Rxc3 {[%clk 0:02:00.4]} 1-0

[Event "Early-Titled-Tuesday-Blitz-February-27-2024"]
[Site "Chess.com"]
[Date "2024.02.27"]
[Round "3"]
[White "falzehope0"]
[Black "HelvertHernandez"]
[Result "1-0"]
[WhiteElo "2350"]
[BlackElo "1994"]
[TimeControl "180+1"]
[EndTime "8:25:24 PST"]
[Termination "falzehope0 won by resignation"]

1. d4 {[%clk 0:02:57.8]} 1... Nf6 {[%clk 0:02:58.9]} 2. e3 {[%clk 0:02:57.6]}
2... g6 {[%clk 0:02:58.3]} 3. Bd3 {[%clk 0:02:57.6]} 3... Bg7 {[%clk 0:02:58.3]}
4. f4 {[%clk 0:02:57.9]} 4... O-O {[%clk 0:02:58]} 5. Nf3 {[%clk 0:02:58.1]}
5... d6 {[%clk 0:02:57.5]} 6. O-O {[%clk 0:02:58.3]} 6... Bg4 {[%clk 0:02:56.4]}
7. Nbd2 {[%clk 0:02:57.7]} 7... Nbd7 {[%clk 0:02:55.8]} 8. Qe1 {[%clk
0:02:56.3]} 8... Re8 {[%clk 0:02:50.8]} 9. Qh4 {[%clk 0:02:54]} 9... e5 {[%clk
0:02:45.4]} 10. fxe5 {[%clk 0:02:50.3]} 10... dxe5 {[%clk 0:02:44.3]} 11. Ng5
{[%clk 0:02:45.8]} 11... exd4 {[%clk 0:02:24.5]} 12. exd4 {[%clk 0:02:42.9]}
12... h6 {[%clk 0:02:22.6]} 13. Nxf7 {[%clk 0:02:42.1]} 13... Kxf7 {[%clk
0:02:14.6]} 14. Qxg4 {[%clk 0:02:41.1]} 14... g5 {[%clk 0:02:04.3]} 15. Bc4+
{[%clk 0:02:30]} 15... Kf8 {[%clk 0:01:57.2]} 16. Qh5 {[%clk 0:02:12.9]} 16...
Re7 {[%clk 0:01:48.8]} 17. Ne4 {[%clk 0:01:56.1]} 17... Qe8 {[%clk 0:01:34.5]}
18. Nxf6 {[%clk 0:01:52.9]} 18... Nxf6 {[%clk 0:01:33.7]} 19. Qf3 {[%clk
0:01:43.1]} 19... Re1 {[%clk 0:01:17.9]} 20. Bd2 {[%clk 0:01:36.8]} 20... Rxa1
{[%clk 0:01:16.9]} 21. Bb4+ {[%clk 0:01:34.3]} 21... c5 {[%clk 0:01:06]} 22.
Bxc5+ {[%clk 0:01:31.8]} 1-0

[Event "Early-Titled-Tuesday-Blitz-February-27-2024"]
[Site "Chess.com"]
[Date "2024.02.27"]
[Round "3"]
[White "Chess4always"]
[Black "EvgenyBurmakin"]
[Result "0-1"]
[WhiteElo "1962"]
[BlackElo "2342"]
[TimeControl "180+1"]
[EndTime "8:25:28 PST"]
[Termination "EvgenyBurmakin won by resignation"]

1. d4 {[%clk 0:03:00.9]} 1... Nf6 {[%clk 0:02:59.4]} 2. Bg5 {[%clk 0:03:00.3]}
2... Ne4 {[%clk 0:02:56.7]} 3. Bf4 {[%clk 0:02:59.2]} 3... c5 {[%clk 0:02:56.2]}
4. f3 {[%clk 0:02:58.9]} 4... g5 {[%clk 0:02:42.6]} 5. Be5 {[%clk 0:02:58.3]}
5... f6 {[%clk 0:02:41.7]} 6. Bxb8 {[%clk 0:02:48.7]} 6... Qb6 {[%clk
0:02:09.1]} 7. Qc1 {[%clk 0:02:32.1]} 7... Rxb8 {[%clk 0:01:58.9]} 8. fxe4
{[%clk 0:02:31.8]} 8... cxd4 {[%clk 0:01:59.2]} 9. Nd2 {[%clk 0:02:27.9]} 9...
e5 {[%clk 0:01:54.8]} 10. g3 {[%clk 0:02:25.2]} 10... g4 {[%clk 0:01:48.5]} 11.
Bg2 {[%clk 0:02:25.4]} 11... Bh6 {[%clk 0:01:47.1]} 12. c3 {[%clk 0:01:57.2]}
12... Be3 {[%clk 0:01:34.2]} 13. Nc4 {[%clk 0:01:55.7]} 13... Bxc1 {[%clk
0:01:29]} 14. Nxb6 {[%clk 0:01:55.9]} 14... Bxb2 {[%clk 0:01:28.9]} 15. Nxc8
{[%clk 0:01:47.7]} 15... Rxc8 {[%clk 0:01:09.9]} 16. Rb1 {[%clk 0:01:44.8]}
16... dxc3 {[%clk 0:01:08]} 17. Nf3 {[%clk 0:01:21.9]} 17... gxf3 {[%clk
0:00:59]} 18. Bxf3 {[%clk 0:01:22.8]} 18... c2 {[%clk 0:00:58.1]} 19. Kf2 {[%clk
0:01:23.1]} 19... cxb1=Q {[%clk 0:00:55.7]} 20. Rxb1 {[%clk 0:01:24]} 20... Bd4+
{[%clk 0:00:53]} 21. e3 {[%clk 0:01:22.9]} 21... Bb6 {[%clk 0:00:53.5]} 0-1

[Event "Early-Titled-Tuesday-Blitz-February-27-2024"]
[Site "Chess.com"]
[Date "2024.02.27"]
[Round "3"]
[White "DrCeltic"]
[Black "TioCridineno"]
[Result "1/2-1/2"]
[WhiteElo "2598"]
[BlackElo "2422"]
[TimeControl "180+1"]
[EndTime "8:25:30 PST"]
[Termination "Game drawn by repetition"]

1. e4 {[%clk 0:02:59.5]} 1... c5 {[%clk 0:03:00]} 2. Nf3 {[%clk 0:02:59.6]} 2...
Nc6 {[%clk 0:03:00.1]} 3. d4 {[%clk 0:02:59.7]} 3... cxd4 {[%clk 0:03:00.1]} 4.
Nxd4 {[%clk 0:03:00.6]} 4... Nf6 {[%clk 0:03:00.6]} 5. Nc3 {[%clk 0:03:00.6]}
5... e5 {[%clk 0:03:01.2]} 6. Ndb5 {[%clk 0:03:01]} 6... d6 {[%clk 0:03:01.6]}
7. Bg5 {[%clk 0:03:01.5]} 7... a6 {[%clk 0:03:01.9]} 8. Na3 {[%clk 0:03:01.7]}
8... b5 {[%clk 0:03:02.1]} 9. Nd5 {[%clk 0:03:00.5]} 9... Be7 {[%clk 0:03:02.3]}
10. Bxf6 {[%clk 0:03:00.6]} 10... Bxf6 {[%clk 0:03:02.9]} 11. c3 {[%clk
0:03:01.5]} 11... O-O {[%clk 0:03:02.7]} 12. Nc2 {[%clk 0:03:01]} 12... Bg5
{[%clk 0:03:02.9]} 13. Be2 {[%clk 0:03:01.3]} 13... Ne7 {[%clk 0:02:59.2]} 14.
Ncb4 {[%clk 0:03:00.7]} 14... Bb7 {[%clk 0:02:54.1]} 15. Qd3 {[%clk 0:02:59.6]}
15... Nxd5 {[%clk 0:02:52.3]} 16. Nxd5 {[%clk 0:02:59.5]} 16... g6 {[%clk
0:02:47.1]} 17. O-O {[%clk 0:02:56.3]} 17... f5 {[%clk 0:02:40.1]} 18. Bf3
{[%clk 0:02:55.9]} 18... f4 {[%clk 0:02:39.2]} 19. Bg4 {[%clk 0:02:49.8]} 19...
h5 {[%clk 0:02:31.6]} 20. Be6+ {[%clk 0:02:48.9]} 20... Kg7 {[%clk 0:02:28.8]}
21. f3 {[%clk 0:02:49.4]} 21... Bxd5 {[%clk 0:02:00.5]} 22. Bxd5 {[%clk
0:02:47.2]} 22... Qb6+ {[%clk 0:02:00.2]} 23. Kh1 {[%clk 0:02:47.2]} 23... Rac8
{[%clk 0:01:58.5]} 24. b3 {[%clk 0:02:38.6]} 24... Rc5 {[%clk 0:01:50.2]} 25. c4
{[%clk 0:02:38.7]} 25... b4 {[%clk 0:01:38.4]} 26. a3 {[%clk 0:02:34.7]} 26...
bxa3 {[%clk 0:01:38.2]} 27. Rxa3 {[%clk 0:02:34.3]} 27... a5 {[%clk 0:01:38.7]}
28. Rfa1 {[%clk 0:02:31.3]} 28... Rb8 {[%clk 0:01:38.5]} 29. h3 {[%clk
0:02:21.8]} 29... Bd8 {[%clk 0:01:35.7]} 30. Rd1 {[%clk 0:02:11]} 30... Be7
{[%clk 0:01:32]} 31. Be6 {[%clk 0:02:07.8]} 31... Qc6 {[%clk 0:01:26.7]} 32.
Rda1 {[%clk 0:02:02.7]} 32... Bd8 {[%clk 0:01:22.9]} 33. Bd5 {[%clk 0:01:52.1]}
33... Qb6 {[%clk 0:01:22.3]} 34. Qd2 {[%clk 0:01:48.7]} 34... Qb4 {[%clk
0:01:12]} 35. Qd3 {[%clk 0:01:40.5]} 35... Qb6 {[%clk 0:01:11.4]} 1/2-1/2

[Event "Early-Titled-Tuesday-Blitz-February-27-2024"]
[Site "Chess.com"]
[Date "2024.02.27"]
[Round "3"]
[White "Kunalm64"]
[Black "GMJustin"]
[Result "1-0"]
[WhiteElo "2577"]
[BlackElo "2335"]
[TimeControl "180+1"]
[EndTime "8:25:30 PST"]
[Termination "Kunalm64 won by resignation"]

1. e4 {[%clk 0:03:00.9]} 1... e5 {[%clk 0:02:50.5]} 2. Nf3 {[%clk 0:02:56.7]}
2... Nc6 {[%clk 0:02:50]} 3. Bb5 {[%clk 0:02:57.3]} 3... a6 {[%clk 0:02:42.4]}
4. Ba4 {[%clk 0:02:57.3]} 4... Nf6 {[%clk 0:02:41.4]} 5. O-O {[%clk 0:02:57.2]}
5... Be7 {[%clk 0:02:37.8]} 6. Re1 {[%clk 0:02:57.1]} 6... b5 {[%clk 0:02:36]}
7. Bb3 {[%clk 0:02:57]} 7... d6 {[%clk 0:02:30.9]} 8. c3 {[%clk 0:02:56.6]} 8...
O-O {[%clk 0:02:27]} 9. d4 {[%clk 0:02:56.2]} 9... Bg4 {[%clk 0:02:13.7]} 10.
Be3 {[%clk 0:02:55.3]} 10... exd4 {[%clk 0:01:55.3]} 11. cxd4 {[%clk 0:02:54.4]}
11... Na5 {[%clk 0:01:55.1]} 12. Nbd2 {[%clk 0:02:52.6]} 12... Nxb3 {[%clk
0:01:48]} 13. axb3 {[%clk 0:02:51.9]} 13... c5 {[%clk 0:01:45.2]} 14. h3 {[%clk
0:02:50.7]} 14... Bh5 {[%clk 0:01:39.2]} 15. g4 {[%clk 0:02:50.3]} 15... Bg6
{[%clk 0:01:37.5]} 16. Nh4 {[%clk 0:02:50.4]} 16... cxd4 {[%clk 0:00:28.2]} 17.
Bxd4 {[%clk 0:02:49]} 17... Nd7 {[%clk 0:00:28.2]} 18. Nf5 {[%clk 0:02:48.7]}
18... Bxf5 {[%clk 0:00:25.7]} 19. exf5 {[%clk 0:02:48]} 19... Bf6 {[%clk
0:00:25.2]} 20. Nf3 {[%clk 0:02:47.1]} 20... Ne5 {[%clk 0:00:21.3]} 21. Nxe5
{[%clk 0:02:40.9]} 21... Bxe5 {[%clk 0:00:19.5]} 22. Bxe5 {[%clk 0:02:36.8]}
22... dxe5 {[%clk 0:00:19.5]} 23. Rxe5 {[%clk 0:02:36.2]} 23... Qxd1+ {[%clk
0:00:16.5]} 24. Rxd1 {[%clk 0:02:35.3]} 24... Rfd8 {[%clk 0:00:15.8]} 25. Red5
{[%clk 0:02:33.2]} 25... Rxd5 {[%clk 0:00:14.2]} 26. Rxd5 {[%clk 0:02:33.9]}
26... Kf8 {[%clk 0:00:13.4]} 27. Rd6 {[%clk 0:02:31.1]} 27... Rc8 {[%clk
0:00:08.7]} 28. Rxa6 {[%clk 0:02:30.4]} 28... Rc2 {[%clk 0:00:07.6]} 29. Rb6
{[%clk 0:02:29.6]} 29... Rxb2 {[%clk 0:00:04.7]} 30. Rxb5 {[%clk 0:02:30.2]} 1-0

[Event "Early-Titled-Tuesday-Blitz-February-27-2024"]
[Site "Chess.com"]
[Date "2024.02.27"]
[Round "3"]
[White "Chessbard1972"]
[Black "manitodeplomo"]
[Result "0-1"]
[WhiteElo "2462"]
[BlackElo "2655"]
[TimeControl "180+1"]
[EndTime "8:25:34 PST"]
[Termination "manitodeplomo won by resignation"]

1. d4 {[%clk 0:03:00.9]} 1... g6 {[%clk 0:02:53.5]} 2. c4 {[%clk 0:02:54.9]}
2... Bg7 {[%clk 0:02:52.7]} 3. Nf3 {[%clk 0:02:55.6]} 3... Nf6 {[%clk
0:02:49.5]} 4. Nc3 {[%clk 0:02:53.8]} 4... O-O {[%clk 0:02:48]} 5. g3 {[%clk
0:02:53.4]} 5... c5 {[%clk 0:02:45.9]} 6. Bg2 {[%clk 0:02:52.8]} 6... d5 {[%clk
0:02:42.3]} 7. O-O {[%clk 0:02:48.5]} 7... Nc6 {[%clk 0:02:41.2]} 8. cxd5 {[%clk
0:02:46.5]} 8... Nxd5 {[%clk 0:02:42.1]} 9. e3 {[%clk 0:02:42.6]} 9... cxd4
{[%clk 0:02:34.3]} 10. Nxd5 {[%clk 0:02:39.1]} 10... Qxd5 {[%clk 0:02:31.4]} 11.
Nxd4 {[%clk 0:02:38.5]} 11... Qc5 {[%clk 0:02:30.3]} 12. Nxc6 {[%clk 0:02:35.8]}
12... bxc6 {[%clk 0:02:31.2]} 13. Qf3 {[%clk 0:02:30]} 13... Rd8 {[%clk
0:02:19.5]} 14. Qxc6 {[%clk 0:02:25.7]} 14... Qxc6 {[%clk 0:02:19.4]} 15. Bxc6
{[%clk 0:02:25.4]} 15... Rb8 {[%clk 0:02:20.3]} 16. Rb1 {[%clk 0:02:19.2]} 16...
Ba6 {[%clk 0:02:18.6]} 17. Re1 {[%clk 0:02:04.4]} 17... Bd3 {[%clk 0:02:16.5]}
18. Ra1 {[%clk 0:02:02.5]} 18... Bxb2 {[%clk 0:01:58.2]} 19. Bxb2 {[%clk
0:02:01.2]} 19... Rxb2 {[%clk 0:01:59.1]} 20. Red1 {[%clk 0:01:59.2]} 20... Rb6
{[%clk 0:01:54.4]} 21. Be4 {[%clk 0:01:55.7]} 21... Rbd6 {[%clk 0:01:54.5]} 22.
Bxd3 {[%clk 0:01:55.3]} 22... Rxd3 {[%clk 0:01:55.4]} 23. Rxd3 {[%clk
0:01:55.4]} 23... Rxd3 {[%clk 0:01:56.2]} 24. Kg2 {[%clk 0:01:50.1]} 24... Ra3
{[%clk 0:01:54.4]} 25. Kf3 {[%clk 0:01:48.8]} 25... h5 {[%clk 0:01:54]} 26. h4
{[%clk 0:01:48.5]} 26... Kg7 {[%clk 0:01:53.7]} 27. Ke4 {[%clk 0:01:48.4]} 27...
Kf6 {[%clk 0:01:54.3]} 28. Kd4 {[%clk 0:01:48.1]} 28... Kf5 {[%clk 0:01:53.7]}
29. f3 {[%clk 0:01:46.3]} 29... e5+ {[%clk 0:01:52.6]} 30. Kc5 {[%clk
0:01:37.8]} 30... Rxe3 {[%clk 0:01:52.2]} 31. a4 {[%clk 0:01:31.9]} 31... Rxf3
{[%clk 0:01:50.3]} 32. Kb5 {[%clk 0:01:32.1]} 32... e4 {[%clk 0:01:50.3]} 33.
Ka6 {[%clk 0:01:32.2]} 33... e3 {[%clk 0:01:49.7]} 34. Kxa7 {[%clk 0:01:32.7]}
34... e2 {[%clk 0:01:47.6]} 35. Re1 {[%clk 0:01:30.6]} 35... Re3 {[%clk
0:01:47.4]} 36. a5 {[%clk 0:01:30.3]} 36... Kg4 {[%clk 0:01:47.4]} 37. a6 {[%clk
0:01:30.4]} 37... Kf3 {[%clk 0:01:47.8]} 38. Kb7 {[%clk 0:01:30.3]} 38... Kf2
{[%clk 0:01:44.5]} 39. Ra1 {[%clk 0:01:27.3]} 39... e1=Q {[%clk 0:01:44.6]} 40.
Rxe1 {[%clk 0:01:25.8]} 40... Rxe1 {[%clk 0:01:41.8]} 41. a7 {[%clk 0:01:26.7]}
41... Ra1 {[%clk 0:01:40]} 42. a8=Q {[%clk 0:01:26.6]} 42... Rxa8 {[%clk
0:01:39.5]} 43. Kxa8 {[%clk 0:01:27.5]} 43... Kxg3 {[%clk 0:01:39]} 44. Kb7
{[%clk 0:01:28.4]} 44... Kxh4 {[%clk 0:01:38.9]} 45. Kc6 {[%clk 0:01:29.3]}
45... Kg4 {[%clk 0:01:38.5]} 46. Kd5 {[%clk 0:01:30.2]} 46... Kf4 {[%clk
0:01:38.1]} 0-1